[Event "8th RTU Open 2018"]
[Site "Riga"]
[Date "2018.08.07"]
[Round "2"]
[White "Praggnanandhaa, R."]
[Black "Chittka, Julius"]
[Result "1-0"]
[ECO "A04"]
[WhiteElo "2532"]
[BlackElo "2316"]
[Annotator "ChessBase"]
[PlyCount "73"]
[EventDate "2018.08.06"]
[EventType "swiss"]
[EventCountry "LAT"]
[SourceTitle "playchess.com"]
[Source "ChessBase"]
[SourceQuality "1"]
[TimeControl "5400+30"]

1. Nf3 {[%emt 0:00:00]} c5 {[%emt 0:03:20]} 2. b3 {[%emt 0:00:47]} Nf6 {[%emt 0:01:44]} 3. Bb2 {[%emt 0:00:13]} g6 {[%emt 0:00:43]} 4. g3 {[%emt 0:03:22]} Bg7 {[%emt 0:00:57]} 5. Bg2 {[%emt 0:00:09]} O-O {[%emt 0:00:10]} 6. c4 {[%emt 0:00:14]} d5 {[%emt 0:03:41]} 7. cxd5 {[%emt 0:01:35]} Nxd5 {[%emt 0:00:29]} 8. Bxg7 {[%emt 0:00:46]} Kxg7 {[%emt 0:00:06]} 9. O-O {[%emt 0:01:38]} Nc6 {[%emt 0:03:31]} 10. d4 {[%emt 0:01:24]} cxd4 {[%emt 0:04:11]} 11. Nxd4 {[%emt 0:00:40]} Ndb4 {[%emt 0:04:04]} 12. Nxc6 {[%emt 0:06:19]} Nxc6 {[%emt 0:00:25]} 13. Bxc6 {[%emt 0:04:19]} bxc6 {[%emt 0:00:29]} 14. Nc3 {[%emt 0:06:51]} Qa5 {[%emt 0:05:31]} 15. Qd4+ {[%emt 0:04:52]} Kg8 {[%emt 0:01:27]} 16. Rfd1 {[%emt 0:04:52]} Be6 {[%emt 0:09:35]} 17. Na4 {[%emt 0:03:04]} Rfd8 {[%emt 0:08:49]} 18. Qc5 {[%emt 0:06:37]} Qb5 {[%emt 0:09:26]} 19. Qe3 {[%emt 0:05:51]} Rd6 {[%emt 0:05:11]} 20. Rxd6 {[%emt 0:11:11]} exd6 {[%emt 0:00:30]} 21. Rd1 {[%emt 0:00:10]} Rd8 {[%emt 0:05:22]} 22. Nc3 {[%emt 0:02:38]} Qa5 {[%emt 0:04:49]} 23. Qd4 {[%emt 0:14:03]} c5 {[%emt 0:05:31]} 24. Qh4 {[%emt 0:01:57]} Rf8 {[%emt 0:08:26]} 25. Ne4 {[%emt 0:05:36]} Qxa2 {[%emt 0:03:13]} 26. Ng5 {[%emt 0:07:04]} h5 {[%emt 0:00:16]} 27. Qe4 {[%emt 0:01:33]} Qxb3 {[%emt 0:02:48]} 28. Rxd6 {[%emt 0:01:03]} Bf5 {[%emt 0:00:37]} 29. Qe7 {[%emt 0:00:30]} Qc3 {[%emt 0:05:04]} 30. e4 {[%emt 0:01:32]} Qe1+ {[%emt 0:01:17]} 31. Kg2 {[%emt 0:00:02]} h4 {[%emt 0:00:52]} 32. gxh4 {[%emt 0:01:49]} Qe2 {[%emt 0:01:12]} 33. Rd8 {[%emt 0:00:49]} Bh3+ {[%emt 0:01:48]} 34. Kxh3 {[%emt 0:00:18]} Qf1+ {[%emt 0:00:32]} 35. Kg3 {[%emt 0:00:08]} Qg1+ {[%emt 0:00:11]} 36. Kf3 {[%emt 0:00:07]} Qh1+ {[%emt 0:00:06]} 37. Ke2 {[%emt 0:00:05]} 1-0

[Event "8th RTU Open 2018"]
[Site "Riga"]
[Date "2018.08.07"]
[Round "2"]
[White "Ruiz Castillo, Joshua Daniel"]
[Black "Severina, Maria"]
[Result "1-0"]
[ECO "C95"]
[WhiteElo "2415"]
[BlackElo "2242"]
[Annotator "NA RC"]
[PlyCount "145"]
[EventDate "2018.08.06"]
[EventType "swiss"]
[EventCountry "LAT"]
[SourceTitle "playchess.com"]
[Source "ChessBase"]
[SourceQuality "1"]
[TimeControl "5400+30"]

1. e4 e5 {[%emt 0:03:20]} 2. Nf3 {[%emt 0:00:00]} Nc6 {[%emt 0:00:02]} 3. Bb5 {[%emt 0:00:00]} a6 {[%emt 0:00:32]} 4. Ba4 {[%emt 0:00:00]} Nf6 {[%emt 0:00:04]} 5. O-O {[%emt 0:00:50]} Be7 {[%emt 0:00:06]} 6. Re1 {[%emt 0:00:06]} b5 {[%emt 0:00:07]} 7. Bb3 {[%emt 0:00:04]} d6 {[%emt 0:00:02]} 8. c3 {[%emt 0:00:09]} O-O {[%emt 0:00:07]} 9. h3 {[%emt 0:00:03]} Nb8 {[%emt 0:00:14]} 10. d4 {[%emt 0:00:08]} Nbd7 {[%emt 0:00:18]} 11. Nbd2 {[%emt 0:00:09]} Bb7 {[%emt 0:00:10]} 12. Bc2 {[%emt 0:00:05]} Re8 {[%emt 0:00:08]} 13. Nf1 {[%emt 0:00:07]} Bf8 14. Ng3 g6 {[%emt 0:00:09]} 15. a4 {[%emt 0:00:16]} Nb6 {C95: Closed Ruy Lopez: Breyer Variation with 10 d4} 16. axb5 {[%emt 0:32:18]} axb5 {[%emt 0:00:16]} 17. Rxa8 {[%emt 0:03:42]} Qxa8 {[#]} 18. d5 $146 {[%emt 0:00:06]} ({Predecessor:} 18. Bg5 Bg7 19. dxe5 dxe5 20. Qc1 Nc4 21. Bh6 Nd6 22. Bxg7 Kxg7 23. Qe3 {½-½ (60) Amonatov,F (2636)-Sardana,R (2402) New Delhi 2018}) 18... c6 {[%emt 0:10:36]} 19. Bg5 Nfd7 {[%emt 0:02:47]} 20. dxc6 {[%emt 0:00:36]} Bxc6 {[%emt 0:00:05]} 21. h4 {[%emt 0:00:03]} d5 {[%emt 0:17:52]} 22. exd5 {[%emt 0:02:30]} Bxd5 {[%emt 0:06:55]} 23. h5 {[%emt 0:00:07]} e4 {[%emt 0:13:09]} 24. Nd4 {[%emt 0:03:13]} b4 {[%emt 0:02:42]} 25. hxg6 {[%emt 0:00:05]} hxg6 {[%emt 0:00:33]} 26. Qg4 {[%emt 0:01:04]} Bg7 {[%emt 0:13:55]} 27. Qh4 bxc3 {[%emt 0:04:43]} 28. bxc3 $11 {[%emt 0:04:22]} Qa5 {[%emt 0:03:33]} 29. Nge2 {[%emt 0:01:58]} Bxd4 {[%emt 0:10:13]} 30. Nxd4 {[%emt 0:00:08]} Qxc3 {[%emt 0:00:06]} 31. Rd1 {[%emt 0:00:02]} Ra8 {[%emt 0:00:44]} 32. Kh2 {[%emt 0:03:40]} Ra1 {[%emt 0:05:36]} 33. Rxa1 {[%emt 0:00:05]} Qxa1 {[%emt 0:00:04]} 34. Be3 {[%emt 0:00:03]} Qa8 {[%emt 0:00:47]} 35. Ne2 {[%emt 0:00:07]} Kg7 {[%emt 0:06:19]} 36. Qh6+ {[%emt 0:00:55]} Kf6 {[%emt 0:00:37]} 37. Bd4+ {[%emt 0:06:34]} Ke7 {[%emt 0:00:50]} 38. Nc3 {[%emt 0:09:55]} Qc6 {[%emt 0:00:12]} 39. Qe3 {[%emt 0:00:09]} Qe6 {[%emt 0:01:01]} 40. Bxb6 {[%emt 0:00:18]} Nxb6 {[%emt 0:00:21]} 41. g3 {[%emt 0:00:50]} Nd7 {[%emt 0:00:35]} 42. Ba4 {[%emt 0:00:58]} Bc6 {[%emt 0:00:30]} 43. Bxc6 {[%emt 0:00:06]} Qxc6 {[%emt 0:00:04]} 44. Nxe4 {[%emt 0:00:04]} Qe6 {[%emt 0:01:00]} 45. Qa3+ {[%emt 0:00:10]} Kd8 {[%emt 0:00:25]} 46. Nd6 {[%emt 0:00:15]} Qd5 {[%emt 0:00:26]} 47. Qb4 {[%emt 0:00:17]} Qh5+ {[%emt 0:00:24]} 48. Kg2 {[%emt 0:00:13]} Qd5+ {[%emt 0:00:21]} 49. f3 {[%emt 0:00:07]} f5 {[%emt 0:00:42]} 50. Qh4+ {[%emt 0:00:14]} Kc7 {[%emt 0:00:14]} 51. Ne8+ {[%emt 0:00:06]} Kc8 {[%emt 0:00:59]} 52. Qb4 {[%emt 0:05:13]} Qc5 {[%emt 0:00:31]} 53. Qd2 {[%emt 0:00:51]} Qe5 {[%emt 0:00:30]} 54. Nd6+ {[%emt 0:00:11]} Kc7 {[%emt 0:00:05]} 55. Nf7 {[%emt 0:00:32]} Qc5 {[%emt 0:00:49]} 56. Ng5 {[%emt 0:00:07]} Qc6 {[%emt 0:00:26]} 57. Qe2 {[%emt 0:02:49]} Qd5 {[%emt 0:00:38]} 58. Ne6+ {[%emt 0:00:07]} Kd6 {[%emt 0:00:26]} 59. Nf4 {[%emt 0:00:06]} Qc5 {[%emt 0:00:37]} 60. Nxg6 {[%emt 0:00:49]} Qd5 {[%emt 0:00:24]} 61. Nf4 {[%emt 0:00:15]} Qb3 {[%emt 0:00:30]} 62. Qd2+ {[%emt 0:00:26]} Ke7 {[%emt 0:00:21]} 63. Ng6+ {[%emt 0:00:46]} Ke6 {[%emt 0:00:19]} 64. Nf4+ {[%emt 0:01:59]} Ke7 {[%emt 0:00:05]} 65. Ne2 {[%emt 0:00:27]} Nf6 {[%emt 0:01:14]} 66. Nd4 {[%emt 0:00:17]} Qd5 {[%emt 0:00:27]} 67. Qf4 {[%emt 0:00:35]} Qa2+ {[%emt 0:00:11]} 68. Kh3 {[%emt 0:00:07]} Qb1 {[%emt 0:00:34]} 69. Nxf5+ {[%emt 0:04:12]} Kf7 {[%emt 0:00:05]} 70. Qc4+ {[%emt 0:00:13]} Kf8 {[%emt 0:01:16]} 71. Qc5+ {[%emt 0:00:19]} Kf7 {[%emt 0:00:14]} 72. Qe7+ {[%emt 0:00:41]} Kg6 {[%emt 0:00:14]} 73. Nh4+ {[%emt 0:00:07]} 1-0

[Event "8th RTU Open 2018"]
[Site "Riga"]
[Date "2018.08.07"]
[Round "2"]
[White "Krykun, Yuriy"]
[Black "Stocek, Jiri"]
[Result "0-1"]
[ECO "A04"]
[WhiteElo "2325"]
[BlackElo "2582"]
[Annotator "RC"]
[PlyCount "100"]
[EventDate "2018.08.06"]
[EventType "swiss"]
[EventCountry "LAT"]
[SourceTitle "playchess.com"]
[Source "ChessBase"]
[SourceQuality "1"]
[TimeControl "5400+30"]

1. Nf3 {[%emt 0:00:00]} d6 {[%emt 0:03:04]} 2. d4 {[%emt 0:01:27]} g6 {[%emt 0:05:45]} 3. g3 {[%emt 0:04:23]} Bg7 {[%emt 0:00:19]} 4. Bg2 {[%emt 0:00:17]} c5 {[%emt 0:00:49]} 5. O-O {[%emt 0:03:50]} cxd4 {[%emt 0:00:10]} 6. Nxd4 {[%emt 0:00:05]} Qb6 {[%emt 0:02:37]} 7. Nb3 {[%emt 0:02:10]} Qc7 {[%emt 0:00:46]} 8. e4 {[%emt 0:03:26]} Nd7 {[%emt 0:03:25]} 9. a4 {[%emt 0:04:34]} a6 {[%emt 0:04:16]} 10. a5 {[%emt 0:02:20]} h5 {[%emt 0:00:50]} 11. h3 {[%emt 0:04:44]} Rb8 {[%emt 0:02:50]} 12. Nd4 {[%emt 0:07:28]} b5 {[%emt 0:14:45]} 13. axb6 {[%emt 0:06:29]} Nxb6 {[%emt 0:08:32]} 14. b3 {[%emt 0:06:09]} Nf6 {[%emt 0:02:29]} 15. c4 {[%emt 0:01:00]} O-O {[%emt 0:05:13]} 16. Nc3 {[%emt 0:02:16]} e6 {[%emt 0:05:23]} 17. Be3 {[%emt 0:06:39]} Bb7 {[%emt 0:03:21]} 18. Qd2 {[%emt 0:04:09]} Rfe8 {[%emt 0:03:19]} 19. Rfd1 {[%emt 0:03:12]} Nbd7 {[%emt 0:00:52]} 20. Rac1 {[%emt 0:06:54]} Nc5 {[%emt 0:05:03]} 21. Qc2 {[%emt 0:00:58]} Ba8 {[%emt 0:00:15]} 22. Rb1 {[%emt 0:01:57]} Rec8 {[%emt 0:05:35]} 23. Nde2 {[%emt 0:03:18]} Qc6 {[%emt 0:04:02]} 24. Nd4 {[%emt 0:01:04]} Qb7 {[%emt 0:01:08]} 25. f3 {[%emt 0:03:09]} Qc7 {[%emt 0:01:47]} 26. Bf2 {[%emt 0:00:52]} Qa5 {[%emt 0:05:01]} 27. Be1 {[%emt 0:05:36]} Qc7 {[%emt 0:00:06]} 28. Bf2 {[%emt 0:00:25]} Ncd7 {[%emt 0:01:28]} 29. Qd2 {[%emt 0:01:57]} Bf8 {[%emt 0:00:11]} 30. Nde2 {[%emt 0:02:06]} Nc5 {[%emt 0:01:19]} 31. Qc2 {[%emt 0:01:02]} Bh6 {[%emt 0:03:43]} 32. Bd4 {[%emt 0:03:48]} Ncd7 {[%emt 0:00:28]} 33. Ra1 {[%emt 0:00:58]} Bb7 {[%emt 0:02:58]} 34. Qa2 {[%emt 0:01:00]} d5 {[%emt 0:01:03]} 35. exd5 {[%emt 0:03:12]} exd5 {[%emt 0:00:08]} 36. c5 {[%emt 0:00:39]} Bc6 {[%emt 0:01:04]} 37. Rab1 {[%emt 0:00:39]} a5 {[%emt 0:00:53]} 38. Bf2 {[%emt 0:01:37]} Bf8 {[%emt 0:00:47]} 39. Nf4 {[%emt 0:02:53]} h4 {[%emt 0:01:30]} 40. Nfxd5 {[%emt 0:00:34]} Nxd5 {[%emt 0:00:38]} 41. Nxd5 {[%emt 0:00:01]} Bxd5 {[%emt 0:00:25]} 42. Rxd5 {[%emt 0:00:01]} hxg3 {[%emt 0:00:07]} 43. Bd4 {[%emt 0:00:21]} Bxc5 {[%emt 0:00:41]} 44. Bxc5 {[%emt 0:01:13]} Nxc5 {[%emt 0:00:08]} 45. h4 {[%emt 0:00:12]} Rd8 {[%emt 0:01:09]} 46. Rg5 {[%emt 0:00:24]} Nxb3 {[%emt 0:01:27]} 47. Rxb3 {[%emt 0:01:27]} Qa7+ {[%emt 0:00:31]} 48. Kf1 {[%emt 0:00:30]} Rd1+ {[%emt 0:00:17]} 49. Ke2 {[%emt 0:00:05]} Qf2+ {[%emt 0:00:13]} 50. Kxd1 {[%emt 0:00:03]} Rd8+ {[%emt 0:00:10]} 0-1

[Event "8th RTU Open 2018"]
[Site "Riga"]
[Date "2018.08.07"]
[Round "2"]
[White "Mishuchkov, Nikolai Mikhailovic"]
[Black "Zakhartsov, Viacheslav V"]
[Result "1/2-1/2"]
[ECO "A05"]
[WhiteElo "2307"]
[BlackElo "2544"]
[Annotator "ChessBase"]
[PlyCount "40"]
[EventDate "2018.08.06"]
[EventType "swiss"]
[EventCountry "LAT"]
[SourceTitle "playchess.com"]
[Source "ChessBase"]
[SourceQuality "1"]
[TimeControl "5400+30"]

1. Nf3 {[%emt 0:00:00]} Nf6 {[%emt 0:00:00]} 2. c4 {[%emt 0:00:00]} b6 {[%emt 0:00:11]} 3. g3 {[%emt 0:03:15]} c5 {[%emt 0:00:30]} 4. Bg2 {[%emt 0:00:05]} Bb7 {[%emt 0:00:02]} 5. O-O {[%emt 0:00:05]} e6 {[%emt 0:00:37]} 6. b3 {[%emt 0:00:17]} Be7 {[%emt 0:00:23]} 7. Bb2 {[%emt 0:00:06]} O-O {[%emt 0:00:14]} 8. Nc3 {[%emt 0:00:05]} a6 {[%emt 0:00:22]} 9. e3 {[%emt 0:02:00]} Qc7 {[%emt 0:02:45]} 10. d4 {[%emt 0:02:11]} cxd4 {[%emt 0:00:26]} 11. exd4 {[%emt 0:00:09]} d5 {[%emt 0:01:38]} 12. cxd5 {[%emt 0:00:32]} Nxd5 {[%emt 0:01:31]} 13. Rc1 {[%emt 0:00:11]} Nxc3 {[%emt 0:14:51]} 14. Rxc3 {[%emt 0:01:13]} Qd6 {[%emt 0:00:57]} 15. Ne5 {[%emt 0:01:47]} Bxg2 {[%emt 0:04:00]} 16. Kxg2 {[%emt 0:00:25]} Nd7 {[%emt 0:01:04]} 17. Rc6 {[%emt 0:09:45]} Qd5+ {[%emt 0:02:01]} 18. Qf3 {[%emt 0:00:08]} Qxf3+ {[%emt 0:00:13]} 19. Kxf3 {[%emt 0:09:49]} Nxe5+ {[%emt 0:00:48]} 20. dxe5 {[%emt 0:00:12]} Bc5 1/2-1/2

[Event "8th RTU Open 2018"]
[Site "Riga"]
[Date "2018.08.07"]
[Round "2"]
[White "Chukavin, Kirill"]
[Black "Meskovs, Nikita"]
[Result "0-1"]
[ECO "B05"]
[WhiteElo "2291"]
[BlackElo "2524"]
[Annotator "RC"]
[PlyCount "80"]
[EventDate "2018.08.06"]
[EventType "swiss"]
[EventCountry "LAT"]
[SourceTitle "playchess.com"]
[Source "ChessBase"]
[SourceQuality "1"]
[TimeControl "5400+30"]

1. e4 {[%emt 0:00:00]} Nf6 {[%emt 0:00:00]} 2. e5 {[%emt 0:00:34]} Nd5 {[%emt 0:00:00]} 3. d4 {[%emt 0:00:18]} d6 {[%emt 0:00:00]} 4. Nf3 {[%emt 0:00:19]} Bg4 {[%emt 0:00:00]} 5. Be2 {[%emt 0:00:56]} e6 {[%emt 0:00:03]} 6. O-O {[%emt 0:02:48]} Be7 {[%emt 0:00:05]} 7. c4 {[%emt 0:01:07]} Nb6 {[%emt 0:00:05]} 8. Nc3 {[%emt 0:01:30]} O-O {[%emt 0:00:41]} 9. h3 {[%emt 0:01:50]} Bh5 {[%emt 0:00:10]} 10. Be3 {[%emt 0:09:54]} d5 {[%emt 0:04:06]} 11. c5 {[%emt 0:06:18]} Bxf3 {[%emt 0:00:11]} 12. Bxf3 {[%emt 0:01:24]} Nc4 {[%emt 0:00:06]} 13. Bc1 {[%emt 0:11:17]} b6 {[%emt 0:00:24]} 14. b3 {[%emt 0:05:29]} Na5 {[%emt 0:00:24]} 15. cxb6 {[%emt 0:02:23]} axb6 {[%emt 0:06:52]} 16. Be2 {[%emt 0:00:33]} c5 {[%emt 0:01:44]} 17. Nb5 {[%emt 0:00:25]} Nbc6 {[%emt 0:00:43]} 18. Bb2 {[%emt 0:05:41]} Qd7 {[%emt 0:01:34]} 19. f4 {[%emt 0:08:06]} c4 {[%emt 0:06:04]} 20. bxc4 {[%emt 0:07:31]} Nxc4 {[%emt 0:03:37]} 21. Bxc4 {[%emt 0:03:43]} dxc4 {[%emt 0:01:03]} 22. a4 {[%emt 0:03:03]} Rfc8 {[%emt 0:07:08]} 23. Qf3 {[%emt 0:05:11]} Nb4 {[%emt 0:03:59]} 24. f5 {[%emt 0:03:01]} exf5 {[%emt 0:00:30]} 25. Qxf5 {[%emt 0:03:08]} Qxf5 {[%emt 0:00:05]} 26. Rxf5 {[%emt 0:00:10]} Nd5 {[%emt 0:00:03]} 27. Nc3 {[%emt 0:02:21]} Rd8 {[%emt 0:22:21]} 28. Nxd5 {[%emt 0:01:20]} Rxd5 {[%emt 0:00:04]} 29. Raf1 {[%emt 0:00:50]} Bb4 {[%emt 0:07:51]} 30. Rxf7 {[%emt 0:06:09]} c3 {[%emt 0:00:10]} 31. Bc1 {[%emt 0:00:32]} Rxd4 {[%emt 0:00:44]} 32. Be3 {[%emt 0:04:07]} Rc4 {[%emt 0:09:36]} 33. R7f4 {[%emt 0:00:28]} Rxf4 {[%emt 0:01:47]} 34. Rxf4 {[%emt 0:00:02]} Rxa4 {[%emt 0:00:06]} 35. e6 {[%emt 0:02:03]} b5 {[%emt 0:07:49]} 36. Rd4 {[%emt 0:00:45]} h6 {[%emt 0:10:12]} 37. Rd7 {[%emt 0:01:16]} Ra6 {[%emt 0:02:26]} 38. Bd4 {[%emt 0:01:13]} Rc6 {[%emt 0:00:08]} 39. Rxg7+ {[%emt 0:00:46]} Kf8 {[%emt 0:00:01]} 40. Rb7 {[%emt 0:00:55]} Bc5 {[%emt 0:00:29]} 0-1

[Event "8th RTU Open 2018"]
[Site "Riga"]
[Date "2018.08.07"]
[Round "2"]
[White "Nilssen, Ellen Fredericia"]
[Black "Rostgaard, Tobias Valentin"]
[Result "1/2-1/2"]
[ECO "A05"]
[WhiteElo "2060"]
[BlackElo "2386"]
[Annotator "NA"]
[PlyCount "86"]
[EventDate "2018.08.06"]
[EventType "swiss"]
[EventCountry "LAT"]
[SourceTitle "playchess.com"]
[Source "ChessBase"]
[SourceQuality "1"]
[TimeControl "5400+30"]

1. Nf3 {[%emt 0:00:00]} Nf6 {[%emt 0:00:21]} 2. c4 {[%emt 0:00:01]} e6 {[%emt 0:00:15]} 3. g3 {[%emt 0:00:15]} d5 {[%emt 0:00:25]} 4. d4 {[%emt 0:00:17]} Bb4+ {[%emt 0:00:24]} 5. Bd2 {[%emt 0:02:45] E01: Catalan: Early deviations} Bd6 {[%emt 0:03:32]} (5... Be7 6. Bg2 O-O 7. O-O Nbd7 8. b4 c6 9. a4 Bd6 10. Qc2 e5 11. cxd5 cxd5 12. dxe5 Nxe5 13. Bc3 Re8 14. Nbd2 Nxf3+ 15. Bxf3 Bh3 {½-½ (58) So,W (2778)-Karjakin,S (2782) Stavanger 2018}) 6. Bg2 {[%emt 0:03:50]} c6 {[%emt 0:00:26]} 7. Qc2 {[%emt 0:03:31]} Ne4 {[%emt 0:03:08]} 8. O-O {[%emt 0:04:01]} O-O {[%emt 0:01:05]} 9. b3 {[%emt 0:05:49]} Nd7 {[%emt 0:02:52]} 10. Bc3 {[%emt 0:01:56]} f5 {[%emt 0:01:45]} 11. Bb2 {[%emt 0:02:01]} Qf6 $146 {[%emt 0:01:48]} ({Predecessor:} 11... b6 12. Nbd2 Bb7 13. Ne5 Nxe5 14. dxe5 Bc5 15. Rad1 Qe7 {0-1 (48) Denishev,M (2333)-Sarana,A (2464) Moscow 2017}) 12. Nbd2 {[%emt 0:02:35]} Qh6 {[%emt 0:03:47]} 13. Rad1 {[%emt 0:15:25]} Ndf6 {[%emt 0:02:22]} 14. Ne5 {[%emt 0:02:02]} Bd7 {[%emt 0:16:21]} 15. Bc1 {[%emt 0:05:16]} Qh5 {[%emt 0:00:23]} 16. Bf3 {[%emt 0:04:34]} Qe8 {[%emt 0:00:09]} 17. Nxe4 {[%emt 0:01:51]} fxe4 {[%emt 0:02:05]} 18. Bg2 {[%emt 0:00:07]} Bxe5 {[%emt 0:05:57]} 19. dxe5 {[%emt 0:00:08]} Ng4 {[%emt 0:00:09]} 20. Bf4 {[%emt 0:04:26]} Qh5 $16 {[%emt 0:16:40]} (20... Qg6 $142) 21. h3 {[%emt 0:01:30]} Nxe5 {[%emt 0:00:38]} 22. g4 {[%emt 0:00:43]} Nxg4 {[%emt 0:00:06]} 23. hxg4 {[%emt 0:00:03]} Qxg4 {[%emt 0:00:08]} 24. Bd6 {[%emt 0:04:43]} Rf5 {[%emt 0:03:43]} 25. f3 {[%emt 0:00:56]} Qg5 {[%emt 0:08:12]} 26. Qc1 {[%emt 0:05:31]} Qg6 {[%emt 0:05:42]} 27. fxe4 {[%emt 0:01:41]} Rg5 {[%emt 0:00:55]} 28. Rf2 {[%emt 0:00:31]} e5 {[%emt 0:00:34]} 29. Be7 {[%emt 0:03:40]} Rg3 {[%emt 0:00:33]} 30. Rd3 {[%emt 0:01:19]} Re8 {[%emt 0:02:25]} 31. Qf1 {[%emt 0:03:45]} h6 {[%emt 0:04:42]} 32. Rf8+ {[%emt 0:01:07]} Rxf8 {[%emt 0:02:10]} 33. Qxf8+ {[%emt 0:00:10]} Kh7 {[%emt 0:00:04]} 34. Rxg3 {[%emt 0:00:55]} Qxg3 {[%emt 0:00:05]} 35. Qf2 {[%emt 0:00:10]} Qxf2+ {[%emt 0:01:06]} 36. Kxf2 {[%emt 0:00:08]} dxc4 {[%emt 0:00:05]} 37. bxc4 {[%emt 0:00:54]} Kg6 {[%emt 0:02:40]} 38. Kg3 {[%emt 0:03:02]} Be6 {[%emt 0:00:47]} 39. c5 {[%emt 0:04:49]} Bxa2 {[%emt 0:00:06]} 40. Bd8 {[%emt 0:00:40]} Be6 {[%emt 0:04:43]} 41. Bf3 {[%emt 0:04:21]} Kf7 {[%emt 0:03:21]} 42. Bc7 {[%emt 0:01:01]} Kf6 {[%emt 0:01:51]} 43. Bd8+ {[%emt 0:00:08]} Kf7 1/2-1/2